[Event "Israeli Team-ch 2023"]
[Site "Petah Tikva"]
[Date "2023.01.13"]
[Round "2.30"]
[White "Mordechai, Hanan"]
[Black "Solomon, Asif"]
[Result "1-0"]
[ECO "B11"]
[WhiteElo "2353"]
[BlackElo "2272"]
[Annotator "TA"]
[PlyCount "95"]
[EventDate "2023.01.13"]
[EventCountry "ISR"]
[SourceTitle "playchess.com"]
[Source "ChessBase"]
[SourceQuality "1"]
[TimeControl "40/5400+30:1800+30"]

{[%evp 11,95,15,0,0,0,-7,0,0,0,-2,-10,-12,41,0,-11,-27,-22,-29,-13,-61,-77,-152,-24,-22,-18,-31,-11,-25,-10,-14,-16,-11,-23,-21,0,-57,-35,-39,-36,-40,-54,-30,-30,-62,-52,-49,-57,-88,-85,-65,0,0,0,0,0,0,631,615,483,231,231,0,0,5,12845,0,215,4,29995,77,69,62,299,286,356,142,135,70,661,568,431,177,389,395,29963,29969]} 1. e4 {[%emt 0:00:02]} c6 {[%emt 0:00:49]} 2. Nc3 {[%emt 0:00:11]} d5 {[%emt 0:00:04]} 3. Nf3 {[%emt 0:00:06]} Bg4 {[%emt 0:00:18]} 4. h3 {[%emt 0:00:24]} Bxf3 {[%emt 0:00:05]} 5. Qxf3 {[%emt 0:00:01]} e6 {[%emt 0:00:06]} 6. d4 {[%emt 0:00:43]} Nf6 {[%emt 0:05:52]} 7. Be2 {[%emt 0:02:49] B11: Caro-Kann: Two Knights Variation.} dxe4 {[%emt 0:02:01]} 8. Qe3 {[%emt 0:00:10]} Bb4 {[%emt 0:00:49]} 9. O-O {[%emt 0:03:03] The position is equal.} Bxc3 {[%emt 0:02:41]} 10. bxc3 {[%emt 0:00:24]} O-O {[%emt 0:00:14]} 11. Qg3 {[%emt 0:05:16] [#]} Qa5 $146 {[%emt 0:05:57]} (11... Nbd7 $11) ({Predecessor:} 11... Kh8 12. Rb1 b5 13. a4 a6 14. c4 bxc4 15. Ba3 Re8 16. Rb7 Kg8 17. Rfb1 Nd5 18. Bxc4 {1-0 Mastrovasilis,D (2614)-Rosner,J (2457) Bayern-chI Bank Hofmann 24th 2021 (4)}) 12. Rb1 {[%emt 0:13:01]} (12. Bh6 $14 Ne8 13. a4) 12... b6 $11 {[%emt 0:04:33]} 13. Rb3 {[%emt 0:06:56]} Nbd7 {[%emt 0:10:33]} 14. Bh6 {[%emt 0:05:41][%csl Gh6][%cal Rg3g7]} Ne8 {[%emt 0:00:31]} 15. f3 {[%emt 0:00:44]} (15. Bg5 $11) 15... Qxa2 $15 {[%emt 0:02:37]} 16. Bd1 {[%emt 0:12:09]} ({White should play} 16. Rfb1) 16... Ndf6 {[%emt 0:02:47]} (16... e3 $17 {...a5 would be deadly.} 17. Bxe3 b5) 17. fxe4 $1 $11 {[%emt 0:04:58]} Nxe4 {[%emt 0:01:35]} 18. Qe5 {[%emt 0:00:57]} N4d6 {[%emt 0:17:24] Against c4} (18... N8f6 19. c4 Qa5 20. c5 gxh6 21. Rxf6 $16) 19. Bxg7 $1 {[%emt 0:05:20][%mdl 64] Deflection} Nc4 {[%emt 0:03:15]} 20. Qe2 {[%emt 0:01:30]} Nxg7 {[%emt 0:01:05]} (20... Kxg7 21. Qxc4 Qa5 22. Qxc6 $14) 21. Qxc4 {[%emt 0:00:12]} Rac8 {[%emt 0:02:47]} 22. Qe2 {[%emt 0:07:53]} c5 {[%emt 0:04:59]} 23. Qe5 {[%emt 0:05:57] [#]} (23. c4 $11) 23... f6 $1 {[%emt 0:04:30]} 24. Qf4 {[%emt 0:09:20]} (24. Qd6 Qa6) 24... Kh8 {[%emt 0:02:56]} 25. dxc5 {[%emt 0:06:49]} Rxc5 {[%emt 0:00:28]} 26. Qh6 {[%emt 0:08:54]} f5 {[%emt 0:02:28]} 27. c4 {[%emt 0:00:00]} Rxc4 {[%emt 0:00:46] And now ...Qa5 would win.} 28. Bh5 {[%emt 0:00:00] White wants to mate with Rg3.} Kg8 $1 {[%emt 0:04:15]} 29. Rg3 {[%emt 0:00:00][%csl Gg3,LRe6,LRg7][%cal Rh6g7]} Rc7 {[%emt 0:00:15]} 30. Re1 {[%emt 0:00:31]} f4 {[%emt 0:10:56]} (30... Qxc2 $15 31. Kh2 Qf2 32. Rxe6 (32. Re2 Qc5 $17) 32... Qc5) 31. Rg5 {[%emt 0:00:45] Kh2 is the strong threat.} Qxc2 {[%emt 0:04:09]} 32. Kh2 {[%emt 0:00:58][%cal Oh5f3] aiming for Bf3!} Qc3 {[%emt 0:03:10] Inhibits Bf3.} (32... Kh8 33. Rc1 Re7 34. Rxc2 Kg8 35. Rc6 b5 36. Rxe6 Rd7 37. Rf6 Rxf6 38. Qxf6) 33. Ree5 {[%emt 0:00:15]} b5 $2 {[%emt 0:01:28][%mdl 8192]} 34. Bf3 $18 {[%emt 0:00:31]} Rff7 {[%emt 0:00:35]} 35. Be4 {[%emt 0:00:25]} (35. Qxe6 Rce7 36. Qxe7 Rxe7 37. Rxe7 Qf6 38. Bd5+ (38. Rexg7+ Qxg7 39. Bd5+ Kh8 $16) 38... Kf8 39. Rf7+ (39. Rexg7 Qxg7 40. Rxg7 Kxg7 $16) 39... Qxf7 40. Bxf7 Kxf7 41. Rxb5 Kf6 $18) (35. Rxb5 $142 Qd4 36. Rb8+ Rf8 37. Qxe6+ Rcf7 38. Rxf8+ Kxf8 39. Qc8+ Ne8 40. Bc6) 35... Kf8 {[%emt 0:00:29][%cal Of4f3]} 36. Qxh7 $2 {[%emt 0:00:40]} (36. Bxh7 Qd4 37. Re4 (37. Rxb5 Rc1 38. Rb8+ Ke7 39. Rb7+ Ke8 40. Rb8+ Kd7) 37... Qb6 38. Rxg7 (38. Bg6 $2 Rc1 $19) 38... Rxg7 $11) (36. Rxe6 $18 Rce7 {[%mdl 64] Pin} 37. Rc6 Qg3+ 38. Rxg3 fxg3+ 39. Kxg3 Rxe4 40. Qd6+ (40. Qxh7 $2 Nf5+ $19 {[%mdl 64] Discovered Attack}) 40... Ree7 41. Rc8+ Ne8 42. Qc5) 36... f3 $1 $11 {[%emt 0:00:27][%mdl 64] Deflection} 37. Bxf3 {[%emt 0:00:35] Black must now prevent Be4.} (37. Rxb5 f2 38. Qh8+ Ke7 $17) 37... Nf5 $2 {[%emt 0:00:27][%mdl 8192]} (37... Qd4 $11 38. Rxb5 (38. Re4 $2 Qd6+ 39. Ree5 Rc5 $19) 38... Qf4+ 39. Rg3 Nf5 {[%mdl 64] Pin} 40. Qg8+ Ke7 41. Qg5+ (41. Bh5 Rg7 $11 {[%mdl 64] Pin}) 41... Qxg5 42. Rxg5 Nd4) 38. Qh8+ $2 {[%emt 0:00:42]} (38. Qg8+ Ke7 39. Rgxf5 {[%mdl 64] Pin} (39. Rxb5 Qd4 $17)) 38... Ke7 $18 {[%emt 0:00:01] [#] Strongly threatening ...Kd6.} 39. Rg8 $2 $40 {[%emt 0:00:29][%mdl 128] White mounts an attack.} (39. Bh5 $2 Rf8 40. Rg7+ (40. Rxe6+ $2 Kxe6 41. Rg6+ Kd5 $19) 40... Nxg7 41. Qxg7+ Kd6 42. Qxf8+ (42. Rxe6+ $2 Kxe6 43. Qg4+ Kd5 $19) 42... Kxe5 $19) ({White has to play} 39. Rg6 $1 $18 {[%cal Rg6e6]} Ng7 40. Qh4+ (40. Rxb5 Qd4 $16) 40... Kd7 41. Rxb5) 39... Rg7 $2 {[%emt 0:01:07][%mdl 8192]} 40. Rxg7+ $2 {[%emt 0:00:34]} (40. Re8+ {mates} Kf7 41. Rxf5+ (41. Rxb5 Rxg2+ 42. Kh1 Qe1+ 43. Kxg2 Qd2+ 44. Kh1 Rc1+) 41... exf5 42. Bh5+ Kf6 43. Qh6+ Rg6 44. Qxg6#) 40... Nxg7 $16 {[%emt 0:00:02]} 41. Qh4+ {[%emt 0:04:55]} (41. Qxg7+ $2 Kd6 $19) 41... Kd6 $2 {[%emt 0:08:21]} (41... Kd7 $1 $14 42. Re1 (42. Rxb5 Nf5 $16) (42. Qf6 Kc8 $16) 42... Ke8) 42. Rxb5 $18 {[%emt 0:02:24] Hoping for Qd8+.} Nf5 {[%emt 0:01:08]} 43. Qf4+ {[%emt 0:04:59]} (43. Qd8+ $18 {and the rest is easy.} Rd7 44. Qf8+ Re7 45. Qd8+ Rd7 46. Qf8+ Re7 47. Rb1) 43... Kd7 $16 {[%emt 0:01:21] [#]} 44. Bg4 {[%emt 0:05:28] White is more active.} ({White should try} 44. Be4 $1 $16 {[%cal Re4f5]} Qc1 45. Qe5) 44... Ne7 {[%emt 0:05:08][%mdl 8192]} (44... Rc4 $14 45. Qb8 a6) 45. Re5 {[%emt 0:02:59]} Rc6 {[%emt 0:01:43]} 46. Qe4 {[%emt 0:01:30] Dodges Qd3} (46. h4 $142) 46... Qb3 $2 {[%emt 0:05:37]} (46... Kc7 47. Qf4 (47. Bxe6 Rc5 $18) (47. Rxe6 Rxe6 48. Qxe6 Nc6 $18) 47... Qc1 48. Re3+ {[%mdl 64] Discovered Attack} (48. Rxe6+ {leads to mate.} Qxf4+ 49. g3 Qf2+ 50. Kh1 Rc1+) 48... Rd6) 47. Qd4+ $18 {[%emt 0:00:56]} Ke8 $2 {[%emt 0:00:19]} (47... Kc8 $18 48. Qxa7 Ng6) 48. Bh5+ {[%emt 0:00:25] An interesting game.   Weighted Error Value: White=0.64/Black=0.64} 1-0

[Event "Israeli Team-ch 2023"]
[Site "Petah Tikva"]
[Date "2023.01.13"]
[Round "2.31"]
[White "Mikhalevski, Alexander"]
[Black "Gorodetzky, David"]
[Result "1/2-1/2"]
[ECO "E01"]
[WhiteElo "2414"]
[BlackElo "2492"]
[Annotator "TA"]
[PlyCount "74"]
[EventDate "2023.01.13"]
[EventCountry "ISR"]
[SourceTitle "playchess.com"]
[Source "ChessBase"]
[SourceQuality "1"]
[TimeControl "40/5400+30:1800+30"]

{[%evp 9,74,29,46,46,37,48,47,54,49,50,41,45,46,51,42,9,10,4,14,0,56,-10,-9,-136,-33,-35,-28,-56,-60,-63,-64,-67,0,0,0,-74,-61,-50,-42,-62,-13,-21,0,-14,0,-72,-68,-74,-12,-62,-57,-68,-13,-13,-13,-22,0,0,0,0,0,0,0,0,0,0,0]} 1. d4 {[%emt 0:00:05]} Nf6 {[%emt 0:00:13]} 2. c4 {[%emt 0:00:09]} e6 {[%emt 0:00:56]} 3. Nf3 {[%emt 0:00:07]} d5 {[%emt 0:00:20]} 4. g3 {[%emt 0:00:07]} c5 {[%emt 0:00:20]} 5. cxd5 {[%emt 0:00:15]} cxd4 {[%emt 0:00:15]} 6. dxe6 {[%emt 0:10:18] E01: Catalan: Early deviations.} (6. Qxd4 exd5 7. Bg2 Nc6 $11) 6... Bxe6 {[%emt 0:00:28]} 7. Qxd4 {[%emt 0:00:10]} Nc6 {[%emt 0:00:03]} 8. Qxd8+ {[%emt 0:05:56] White is slightly better.} Rxd8 {[%emt 0:00:44]} 9. Bg2 {[%emt 0:00:11]} Nb4 {[%emt 0:01:56] [#] ( -> ...Nc2+)} 10. Na3 {[%emt 0:00:31] Against Nc2+} Bc5 {[%emt 0:05:48][%cal Of6g4]} 11. O-O {[%emt 0:01:50]} O-O {[%emt 0:01:09][%cal Of6e4] [#]} 12. b3 $146 {[%emt 0:12:47]} ({Predecessor:} 12. Bg5 Rfe8 13. e3 Bxa2 14. Nb5 Rd7 15. Rfc1 Bb6 16. Nc3 Bb3 17. Ra3 Bc2 18. Bxf6 gxf6 {½-½ Hoexter,H (2205)-Reed,A (2218) W-ch WS/CCM/B/06 email 2019}) 12... Ne4 {[%emt 0:21:48]} 13. Bb2 {[%emt 0:00:56] Against Nc3} a6 {[%emt 0:05:33] Dodges Nb5} 14. Nc4 {[%emt 0:13:17]} b5 {[%emt 0:09:04]} (14... Rfe8 $11) 15. Nce5 {[%emt 0:11:40]} (15. Na5 $1 $14) 15... f6 $11 {[%emt 0:04:29]} 16. a3 {[%emt 0:00:10]} (16. Nd3 $1 $11 {was the only way to keep the balance.} Nxd3 17. exd3 Rxd3 18. Nd4 Bxd4 19. Bxe4) 16... fxe5 {[%emt 0:06:55]} (16... Nc2 $17 17. Rac1 fxe5 18. Rxc2 Bxb3 19. Rxc5 Nxc5 20. Bxe5 Bc4) 17. axb4 $15 {[%emt 0:00:12]} Bxf2+ {[%emt 0:00:40]} 18. Kh1 $1 {[%emt 0:12:49]} Be3 {[%emt 0:03:33] Hoping for ...Nf2+.} 19. Bc1 {[%emt 0:00:30]} (19. Rxa6 Bc8 20. Raa1 Nf2+ 21. Rxf2 Bxf2 22. Bxe5 Rfe8 $19) 19... Nf2+ {[%emt 0:08:31]} 20. Kg1 {[%emt 0:00:08]} Nh3+ {[%emt 0:00:24]} ({Black should try} 20... Ng4+ $15 21. Bxe3 Nxe3) 21. Kh1 $11 {[%emt 0:00:06]} Nf2+ {[%emt 0:00:09]} (21... Bxc1 $11 22. Rfxc1 e4) 22. Kg1 $17 {[%emt 0:00:03]} Ng4+ {[%emt 0:00:52]} 23. Bxe3 {[%emt 0:07:24]} Nxe3 {[%emt 0:00:37]} 24. Ng5 {[%emt 0:03:05]} Rxf1+ {[%emt 0:05:21]} (24... Bf5 $1 $15 25. Rf2 h6) 25. Bxf1 $11 {[%emt 0:00:02]} Bxb3 {[%emt 0:00:45]} 26. Bh3 {[%emt 0:01:27][%cal Oa1a3] [#] Threatens to win with Ra3!} h6 {[%emt 0:07:57]} 27. Be6+ {[%emt 0:07:00]} (27. Rxa6 $11 {keeps the balance.} Nc2 28. Be6+ Bxe6 29. Nxe6) 27... Bxe6 $17 {[%emt 0:00:14]} 28. Nxe6 {[%emt 0:00:03][%mdl 4096] Endgame KRN-KRN} Rd6 {[%emt 0:03:26]} (28... Rd2 $17 29. Rxa6 Rxe2) 29. Nc7 {[%emt 0:02:28]} (29. Nc5 $11) 29... Rd2 $15 {[%emt 0:04:47]} 30. Kf2 {[%emt 0:03:26]} Nf5 {[%emt 0:01:03]} ({Better is} 30... Ng4+ $15 31. Ke1 Rb2) 31. Rxa6 $11 {[%emt 0:02:51] The position is equal.} Nd4 {[%emt 0:00:17] Inhibits Re6.} 32. Kf1 {[%emt 0:00:05]} (32. Ra8+ Kf7 33. Kf1 Rxe2 34. Nxb5 Rxh2 35. Nxd4 exd4 $15) 32... e4 {[%emt 0:03:40]} 33. Ra3 {[%emt 0:01:50]} Rc2 {[%emt 0:00:44]} ({Resist} 33... Rxe2 34. Nxb5 Rd2 35. Nxd4 Rxd4 36. Rb3 $16 (36. b5 Rb4 $11)) 34. Ra8+ {[%emt 0:01:14]} ({Don't play} 34. e3 Nf3 35. Nxb5 Nxh2+ 36. Kg1 Nf3+ 37. Kf1 Rb2 $17) 34... Kh7 {[%emt 0:01:02]} 35. Rd8 $1 {[%emt 0:00:03]} Nxe2 {[%emt 0:02:50] aiming for ...Nc3.} 36. Nxb5 {[%emt 0:00:10]} Nc1 {[%emt 0:00:31][%cal Oe4e3] And now ...e3! would win.} 37. Re8 {[%emt 0:01:02]} Rc4 {[%emt 0:00:38] Weighted Error Value: White=0.19 (very precise) /Black=0.21 (precise)} 1/2-1/2

[Event "Israeli Team-ch 2023"]
[Site "Petah Tikva"]
[Date "2023.01.13"]
[Round "2.32"]
[White "Globus, Or"]
[Black "Parkhov, Yair"]
[Result "1/2-1/2"]
[ECO "D38"]
[WhiteElo "2411"]
[BlackElo "2467"]
[Annotator "TA"]
[PlyCount "68"]
[EventDate "2023.01.13"]
[EventCountry "ISR"]
[SourceTitle "playchess.com"]
[Source "ChessBase"]
[SourceQuality "1"]
[TimeControl "40/5400+30:1800+30"]

{[%evp 13,68,-5,17,26,24,23,15,13,21,8,25,20,17,12,12,17,13,13,20,12,27,32,29,27,32,13,16,0,25,14,14,14,15,0,0,0,0,0,0,0,0,0,0,0,0,0,0,0,0,0,0,0,0,0,0,0,0]} 1. d4 {[%emt 0:00:49]} Nf6 {[%emt 0:02:25]} 2. c4 {[%emt 0:00:27]} e6 {[%emt 0:00:06]} 3. Nf3 {[%emt 0:00:06]} d5 {[%emt 0:00:16]} 4. Nc3 {[%emt 0:02:11]} Bb4 {[%emt 0:00:12]} 5. Qa4+ {[%emt 0:02:02]} Nc6 {[%emt 0:00:28]} 6. a3 {[%emt 0:00:04]} Bxc3+ {[%emt 0:01:25]} 7. bxc3 {[%emt 0:00:59]} Bd7 {[%emt 0:03:49][%cal Oc6d4]} 8. cxd5 {[%emt 0:18:54] D38: Queen's Gambit Declined: Ragozin Defence (4 Nf3 Bb4).} exd5 {[%emt 0:02:00]} 9. Bg5 {[%emt 0:01:18]} h6 {[%emt 0:04:42]} 10. Bh4 {[%emt 0:03:22]} O-O {[%emt 0:12:30]} 11. e3 {[%emt 0:06:25]} Ne5 {[%emt 0:06:02][%mdl 64] [#] Discovered Attack} 12. Bxf6 $146 {[%emt 0:13:53]} ({Predecessor:} 12. Qc2 Nxf3+ 13. gxf3 Rc8 14. Qd2 Ne4 15. Bxd8 Nxd2 16. Kxd2 Rfxd8 17. Bd3 c5 18. Rhb1 Rc7 19. a4 g5 20. a5 cxd4 {½-½ Halvax,G (2407)-Wagner,D (2584) Bundesliga 2122 2022 (13.3)}) 12... Bxa4 {[%emt 0:01:52]} 13. Bxd8 {[%emt 0:00:14]} Nxf3+ {[%emt 0:00:03]} 14. gxf3 {[%emt 0:00:06]} Rfxd8 {[%emt 0:00:04]} 15. Rb1 {[%emt 0:01:14]} b6 {[%emt 0:04:25]} 16. Kd2 {[%emt 0:07:18]} c5 {[%emt 0:11:18]} 17. Bb5 {[%emt 0:03:12]} Bxb5 {[%emt 0:00:39]} 18. Rxb5 $14 {[%emt 0:00:12][%mdl 4096] Endgame KRR-KRR} Rac8 {[%emt 0:02:02]} 19. dxc5 {[%emt 0:20:45]} bxc5 {[%emt 0:01:20]} 20. Rd1 {[%emt 0:00:50]} Rd6 {[%emt 0:11:36]} 21. Ke2 {[%emt 0:02:29]} Ra6 {[%emt 0:05:54] The position is equal.} 22. Rxd5 {[%emt 0:01:53]} Rxa3 {[%emt 0:00:08]} 23. Rbxc5 {[%emt 0:00:17]} Rxc3 {[%emt 0:00:24]} 24. Rxc3 {[%emt 0:00:48]} Rxc3 $11 {[%emt 0:00:04] KR-KR} 25. Rd8+ {[%emt 0:00:21]} Kh7 {[%emt 0:00:07]} 26. Rd7 {[%emt 0:00:09][%csl LRa7,LRf7]} f6 {[%emt 0:03:38]} 27. Rxa7 {[%emt 0:00:09]} Rc1 $1 {[%emt 0:00:05]} 28. Ra4 {[%emt 0:08:50]} Rh1 {[%emt 0:00:55]} 29. h4 {[%emt 0:00:10]} h5 {[%emt 0:00:42]} 30. Rd4 {[%emt 0:00:36]} Kh6 {[%emt 0:00:35]} 31. Rf4 {[%emt 0:00:44]} Kg6 {[%emt 0:01:27]} 32. Ra4 {[%emt 0:00:29]} Kh6 {[%emt 0:00:15]} 33. Rf4 {[%emt 0:00:07]} Kh7 {[%emt 0:00:45]} 34. Ra4 {[%emt 0:00:13]} Kh6 {[%emt 0:01:00] An interesting draw.   Weighted Error Value: White=0.03 (flawless) /Black=0.04 (flawless)} 1/2-1/2

[Event "Israeli Team-ch 2023"]
[Site "Petah Tikva"]
[Date "2023.01.13"]
[Round "2.33"]
[White "Gorodetzky, Matan"]
[Black "Levin, Guy"]
[Result "0-1"]
[ECO "B22"]
[WhiteElo "2333"]
[BlackElo "2391"]
[Annotator "TA"]
[PlyCount "114"]
[EventDate "2023.01.13"]
[EventCountry "ISR"]
[SourceTitle "playchess.com"]
[Source "ChessBase"]
[SourceQuality "1"]
[TimeControl "40/5400+30:1800+30"]

{[%evp 9,114,33,39,29,89,45,33,25,26,16,16,0,0,0,0,0,-2,-20,-22,-9,27,-22,6,-57,0,-6,26,25,30,14,22,0,12,22,30,4,30,0,0,-10,0,0,0,0,0,-23,0,0,18,17,6,5,2,-50,-46,-47,-20,-44,-22,-12,4,6,20,6,6,6,6,7,5,4,79,78,70,81,63,76,64,29,29,35,29,32,40,16,16,0,0,-38,-38,-36,-5,-22,0,-493,-460,-1281,-394,-1217,-369,-922,-889,-4134,-881,-876,-861,-753,-706]} 1. e4 {[%emt 0:00:03]} c5 {[%emt 0:00:04]} 2. c3 {[%emt 0:00:27]} e5 {[%emt 0:06:18]} 3. Nf3 {[%emt 0:01:57]} Nc6 {[%emt 0:00:16]} 4. Bc4 {[%emt 0:02:37]} Be7 {[%emt 0:18:40]} 5. O-O {[%emt 0:07:29]} Nf6 {[%emt 0:03:03]} 6. d4 {[%emt 0:01:29] B22: Sicilian: 2 c3.} d6 {[%emt 0:03:04]} (6... cxd4 $11 7. cxd4 exd4) 7. dxe5 {[%emt 0:04:33]} dxe5 {[%emt 0:03:24]} 8. Qe2 {[%emt 0:01:03] White is slightly better.} O-O {[%emt 0:00:25]} 9. h3 {[%emt 0:02:05]} Qc7 {[%emt 0:02:45] [#]} 10. a4 $146 {[%emt 0:02:02]} ({Predecessor:} 10. Bg5 Ne8 11. Bxe7 Qxe7 12. Nbd2 Kh8 13. Rfe1 Nc7 14. Nf1 Be6 15. Ne3 Rad8 16. Rad1 {1-0 Sejkora,V (2207)-Doucha,L (2072) Tatry op Tatranske Zruby 2012 (1)}) 10... Na5 {[%emt 0:09:42]} 11. Ba2 {[%emt 0:00:54]} c4 {[%emt 0:08:15]} 12. Nbd2 {[%emt 0:02:18][%cal Rd2c4]} b6 {[%emt 0:01:48]} 13. Re1 {[%emt 0:07:45][%cal Ra2c4]} Ba6 {[%emt 0:01:22]} 14. Nf1 {[%emt 0:00:30]} Nh5 {[%emt 0:03:57]} 15. g3 {[%emt 0:04:09]} (15. N3h2 $142 Nf6 16. Bg5) 15... Bc5 {[%emt 0:08:19]} 16. Ne3 {[%emt 0:17:12]} (16. Be3 $11) 16... Bxe3 {[%emt 0:00:45]} (16... Nf6 $15) 17. Bxe3 $11 {[%emt 0:00:52]} Rfe8 {[%emt 0:00:44]} 18. Rad1 {[%emt 0:03:56]} Nf6 {[%emt 0:00:49]} 19. Bb1 {[%emt 0:01:41]} Bb7 {[%emt 0:00:20]} 20. Nd2 {[%emt 0:02:28]} Rac8 {[%emt 0:09:32]} 21. Bc2 {[%emt 0:03:07]} Nd7 {[%emt 0:01:45]} 22. Qg4 {[%emt 0:02:33]} Re6 {[%emt 0:02:59] Repels Bh6} (22... Nf6 $5 {[%cal Rf6g4]} 23. Qh4 Nd7 $11) 23. Nf3 {[%emt 0:03:17]} Nf6 {[%emt 0:00:31]} 24. Qh4 {[%emt 0:00:34]} h6 {[%emt 0:00:20]} 25. Nd2 {[%emt 0:04:17] Wards off Nb3} Rd8 {[%emt 0:02:34][%cal Bc8d8,Bd8d7,Bd7d6][%mdl 32]} 26. g4 {[%emt 0:01:25]} Red6 {[%emt 0:01:12][%cal Oa5b3]} 27. f3 {[%emt 0:00:35]} R8d7 {[%emt 0:00:52]} 28. Nf1 {[%emt 0:03:09][%cal Bd2f1,Bf1g3,Bg3f5,Bf5h6][%mdl 32]} Qd8 {[%emt 0:03:36][%cal Rd6d1]} 29. Rxd6 {[%emt 0:00:47]} Rxd6 {[%emt 0:00:01]} 30. Ng3 {[%emt 0:01:51]} Nh7 {[%emt 0:00:52]} 31. Qh5 {[%emt 0:05:06]} ({Better is} 31. Qxd8+ $11 Rxd8 32. h4) 31... Ng5 $15 {[%emt 0:02:06]} 32. Kf2 {[%emt 0:00:32]} Rd2+ {[%emt 0:00:33][%mdl 64] [#] Double Attack} 33. Re2 $1 {[%emt 0:01:39]} Rxe2+ {[%emt 0:01:36]} (33... Rd3 {keeps more tension.} 34. Re1 Bc6 35. Nf5 Rd2+) 34. Kxe2 {[%emt 0:00:12]} Qf6 {[%emt 0:01:41]} (34... Nc6 {looks sharper.} 35. Nf5 Ne6 36. h4 Ned4+) 35. Nf5 {[%emt 0:00:44]} Bc8 {[%emt 0:02:46]} (35... Ne6 {with more complications.} 36. h4 Qd8 37. g5 hxg5 38. hxg5 Nf8) 36. h4 {[%emt 0:00:40]} (36. Qh4 {is interesting.} Qd8 37. Qg3 f6 38. h4) 36... Nh7 {[%emt 0:00:51]} 37. g5 $36 {[%emt 0:02:49][%mdl 2048] White is more active.} hxg5 {[%emt 0:00:03]} 38. hxg5 {[%emt 0:00:08]} Qe6 {[%emt 0:00:07]} 39. Qh1 {[%emt 0:02:10]} g6 {[%emt 0:01:02]} (39... Nf8 $11 {keeps the balance.}) 40. Nh6+ $16 {[%emt 0:00:40]} Kg7 {[%emt 0:00:02]} 41. Ng4 {[%emt 0:30:31][%cal Og4e5] aiming for Nxe5!} Nc6 {[%emt 0:30:53]} 42. Qh4 {[%emt 0:03:47]} Qd6 {[%emt 0:00:00] [#]} 43. Nf6 $1 {[%emt 0:00:00]} Nxf6 {[%emt 0:00:00][%mdl 64] Remove Defender} 44. gxf6+ {[%emt 0:00:00]} Kg8 $1 {[%emt 0:00:00]} 45. Bh6 {[%emt 0:00:00] White threatens Bg7 and mate.} (45. Qg5 {simplifies} Nd8 46. f4 exf4 47. Qxf4 Qxf4 48. Bxf4 Kf8 49. Kf3) 45... Qe6 {[%emt 0:00:00]} 46. Bg5 {[%emt 0:00:00] Intending Qh6 and mate.} Qh3 {[%emt 0:00:00]} 47. Qf2 {[%emt 0:00:00] Against Qg2} (47. Qxh3 {simplifies} Bxh3 48. Kf2 Be6 49. f4) 47... Nd8 {[%emt 0:00:00]} 48. a5 {[%emt 0:00:00]} Ne6 {[%emt 0:00:00]} 49. Bd2 {[%emt 0:00:00]} g5 {[%emt 0:00:00]} 50. axb6 {[%emt 0:00:00]} axb6 {[%emt 0:00:00]} 51. Qxb6 $2 {[%emt 0:00:00][%mdl 8192]} (51. Qg1 $11 {and White has nothing to worry.} Qh4 52. Ba4 (52. Qxb6 g4 $17)) 51... g4 $19 {[%emt 0:00:00]} 52. Qg1 {[%emt 0:00:00] Against Nd4+} ({Not} 52. Qf2 $2 g3 53. Qe1 Qg2+ 54. Kd1 Qxf3+ 55. Kc1 Nf4) (52. Be3 $142 Nf4+ 53. Ke1 Qh1+ 54. Kd2 Qxf3 55. Qd8+ Kh7 56. Bb6) 52... g3 $2 {[%emt 0:00:00]} (52... Nf4+ 53. Bxf4 Qxf3+ 54. Ke1 Qxf4) 53. Be3 $2 {[%emt 0:00:36]} (53. Kd1 Qh2 54. Be3) 53... Qh2+ $2 {[%emt 0:00:00]} (53... Ng5 54. Bf2 g2) 54. Bf2 $2 {[%emt 0:02:45]} (54. Kd1 Nf4 55. Qe1) 54... Nf4+ {[%emt 0:00:00] Black is clearly winning.} 55. Ke3 {[%emt 0:00:26]} Qxf2+ {[%emt 0:00:00]} (55... Qxg1 $142 56. Bxg1 Nh3) 56. Qxf2 {[%emt 0:00:02]} gxf2 {[%emt 0:00:00]} 57. Kxf2 {[%emt 0:00:02]} Be6 {[%emt 0:00:00] Weighted Error Value: White=0.65/Black=0.40} 0-1